fUSD/lending_fUSD_20251031
["ID","MTS","AMOUNT","RATE_DAILY","PERIOD"]
[392750293,1761906632151,-500.0,0.00014973,2]
[392750294,1761906632160,-500.0,0.00014973,2]
[392750296,1761906632169,-500.0,0.00014973,2]
[392750297,1761906632178,-630.72862855,0.00014973,2]
[392750298,1761906632186,-500.0,0.00014973,2]
[392750299,1761906632195,-500.0,0.00014973,2]
[392750300,1761906632204,-473.75758089,0.00014973,2]
[392750301,1761906632213,-500.0,0.00014973,2]
[392750303,1761906632222,-500.0,0.00014973,2]
[392750304,1761906632232,-500.0,0.00014979,2]
[392750306,1761906632241,-178.43315074,0.00014979,2]
[392750308,1761906632250,-375.53717882,0.00014979,2]
[392750310,1761906632260,-264.23363352,0.00014979,2]
[392750312,1761906632269,-500.0,0.00014979,2]
[392750313,1761906632278,-197692.24687014,0.0001498,2]
[392750314,1761906632288,-503.46395869,0.00014985,2]
[392750315,1761906632297,-150.0,0.00014986,2]
[392750316,1761906632306,-388.28,0.00014986,2]
[392750317,1761906632316,-151.0,0.00014991,2]
[392750318,1761906632325,-151.0,0.00014991,2]
[392750319,1761906632335,-151.0,0.00014991,2]
[392750320,1761906632344,-151.0,0.00014991,2]
[392750321,1761906632354,-151.0,0.00014991,2]
[392750322,1761906632363,-151.0,0.00014991,2]
[392750323,1761906632373,-151.0,0.00014991,2]
[392750324,1761906632382,-151.0,0.00014991,2]
[392750325,1761906632393,-151.0,0.00014991,2]
[392750326,1761906632402,-151.0,0.00014991,2]
[392750327,1761906632411,-574.12855637,0.00014991,2]
[392750328,1761906632422,-291.98475699,0.00014991,2]
[392750329,1761906632431,-151.0,0.00014991,2]
[392750330,1761906632441,-500.0,0.00014991,2]
[392750331,1761906632450,-500.0,0.00014991,2]
[392750332,1761906632459,-214.26309035,0.00014991,2]
[392750333,1761906632469,-500.0,0.00014991,2]
[392750334,1761906632478,-500.0,0.00014991,2]
[392750335,1761906632488,-500.0,0.00014991,2]
[392750336,1761906632498,-500.0,0.00014991,2]
[392750337,1761906632507,-500.0,0.00014991,2]
[392750338,1761906632527,-500.0,0.00014991,2]
[392750339,1761906632539,-500.0,0.00014991,2]
[392750340,1761906632548,-500.0,0.00014991,2]
[392750341,1761906632558,-209.40437684,0.00014991,2]
[392750342,1761906632567,-500.0,0.00014991,2]
[392750343,1761906632576,-500.0,0.00014991,2]
[392750344,1761906632586,-500.0,0.00014991,2]
[392750345,1761906632595,-500.0,0.00014991,2]
[392750346,1761906632604,-278.00521688,0.00014991,2]
[392750347,1761906632614,-500.0,0.00014991,2]
[392750348,1761906632624,-500.0,0.00014991,2]
[392750349,1761906632634,-500.0,0.00014991,2]
[392750350,1761906632643,-179.59992353,0.00014991,2]
[392750351,1761906632657,-320.40007647,0.00014991,2]
[392750352,1761906632666,-500.0,0.00014991,2]
[392750353,1761906632675,-500.0,0.00014991,2]
[392750354,1761906632684,-500.0,0.00014991,2]
[392750355,1761906632694,-500.0,0.00014991,2]
[392750356,1761906632750,-500.0,0.00014991,2]
[392750357,1761906632759,-151.0,0.00014997,2]
[392750358,1761906632769,-211.26,0.00014999,2]
[392750359,1761906632778,-500.0,0.00014999,2]
[392750360,1761906632788,-500.0,0.00014999,2]
[392750361,1761906632797,-505.83305054,0.00014999,2]
[392750362,1761906632806,-507.3491352,0.00014999,2]
[392750363,1761906632816,-500.0,0.00014999,2]
[392750364,1761906632825,-32747.2207548,0.00014999,2]
[392750365,1761906632834,-1012.32,0.00014999,2]
[392750366,1761906632843,-500.0,0.00014999,2]
[392750367,1761906632852,-203.35165968,0.00014999,2]
[392750368,1761906632860,-150.0,0.00014999,2]
[392750369,1761906632869,-500.0,0.00014999,2]
[392750370,1761906632878,-500.0,0.00014999,2]
[392750371,1761906632887,-257.02911303,0.00014999,2]
[392750372,1761906632896,-15520.6327785,0.00014999,2]
[392750373,1761906632919,-1603.6357337,0.00014999,2]
[392750374,1761906632928,-150.0,0.00014999,2]
[392750375,1761906632938,-150.0,0.00014999,2]
[392750376,1761906632947,-500.0,0.00014999,2]
[392750377,1761906632956,-663.0,0.00014999,2]
[392750378,1761906632965,-150.0,0.00014999,2]
[392750379,1761906632974,-1222.0,0.00014999,2]
[392750380,1761906632983,-500.0,0.00014999,2]
[392750381,1761906632992,-500.0,0.00014999,2]
[392750382,1761906633001,-150.0,0.00014999,2]
[392750383,1761906633010,-150.0,0.00014999,2]
[392750384,1761906633020,-500.0,0.00014999,2]
[392750385,1761906633029,-150.0,0.00014999,2]
[392750386,1761906633038,-500.0,0.00014999,2]
[392750387,1761906633047,-150.0,0.00014999,2]
[392750388,1761906633056,-500.0,0.00014999,2]
[392750389,1761906633066,-500.0,0.00014999,2]
[392750390,1761906633075,-500.0,0.00014999,2]
[392750391,1761906633085,-500.0,0.00014999,2]
[392750392,1761906633095,-500.0,0.00014999,2]
[392750393,1761906633104,-500.0,0.00014999,2]
[392750394,1761906633114,-500.0,0.00014999,2]
[392750395,1761906633123,-500.0,0.00014999,2]
[392750396,1761906633132,-500.0,0.00014999,2]
[392750397,1761906633141,-500.0,0.00014999,2]
[392750398,1761906633151,-500.0,0.00014999,2]
[392750399,1761906633160,-500.0,0.00014999,2]
[392750400,1761906633169,-500.0,0.00014999,2]
[392750401,1761906633178,-500.0,0.00014999,2]
[392750402,1761906633188,-500.0,0.00014999,2]
[392750403,1761906633196,-187.0759926,0.00014999,2]
[392750404,1761906633206,-500.0,0.00014999,2]
[392750405,1761906633215,-150.0,0.00014999,2]
[392750406,1761906633224,-500.0,0.00014999,2]
[392750407,1761906633234,-153.67600953,0.00014999,2]
[392750408,1761906633243,-500.0,0.00014999,2]
[392750409,1761906633252,-150.0,0.00014999,2]
[392750410,1761906633261,-293.11226417,0.00014999,2]
[392750411,1761906633276,-206.88773583,0.00014999,2]
[392750412,1761906633286,-150.0,0.00014999,2]
[392750413,1761906633294,-9.24422122,0.00014999,2]
[392750414,1761906633306,-140.75577878,0.00014999,2]
[392750415,1761906633315,-154.42519293,0.00014999,2]
[392750416,1761906633324,-150.0,0.00014999,2]
[392750417,1761906633333,-500.0,0.00014999,2]
[392750418,1761906633342,-89.96190518,0.00014999,2]
[392750419,1761906637608,-500.0,0.00014978,2]
[392750420,1761906637617,-289.70994392,0.00014978,2]
[392750421,1761906637627,-500.0,0.00014978,2]
[392750422,1761906637635,-500.0,0.00014978,2]
[392750423,1761906637645,-364.88226372,0.00014978,2]
[392750424,1761906637654,-62.73947313,0.00014999,2]
[392750425,1761906637664,-500.0,0.00014999,2]
[392750426,1761906637672,-150.0,0.00014999,2]
[392750427,1761906637682,-150.0,0.00014999,2]
[392750428,1761906637691,-150.0,0.00014999,2]
[392750429,1761906637700,-500.0,0.00014999,2]
[392750430,1761906637709,-500.0,0.00014999,2]
[392750431,1761906637719,-157.93191293,0.00014999,2]
[392750432,1761906637728,-500.0,0.00014999,2]
[392750433,1761906637737,-150.0,0.00014999,2]
[392750434,1761906637745,-150.0,0.00014999,2]
[392750435,1761906637755,-500.0,0.00014999,2]
[392750436,1761906637763,-152.49763088,0.00014999,2]
[392750437,1761906637773,-150.0,0.00014999,2]
[392750438,1761906637787,-150.0,0.00014999,2]
[392750439,1761906637797,-150.0,0.00014999,2]
[392750440,1761906637807,-500.0,0.00014999,2]
[392750441,1761906637817,-1269.0,0.00015,2]
[392750442,1761906637827,-2637879.13718558,0.00015,2]
[392750443,1761906637837,-2027.73488218,0.00015,2]
[392750444,1761906637846,-7893.81958783,0.00015,2]
[392750445,1761906637855,-108000.02191605,0.00015,2]
[392750446,1761906637867,-2037.59096019,0.00015,2]
[392750447,1761906637878,-8927.34055096,0.00015,2]
[392750449,1761906637888,-21527.95153433,0.00015,2]
[392750451,1761906637901,-2070.66,0.00015,2]
[392750454,1761906637915,-512.46921,0.00015,2]
[392750498,1761906639726,-500.0,0.00014999,2]
[392750499,1761906639736,-4093.70237203,0.00015,2]
[392750500,1761906639998,-473.93335833,0.00015,2]
[392750501,1761906640009,-764679.45815193,0.00015,2]
[392750503,1761906640311,-3401.229,0.00015,2]
[392750504,1761906640345,-23298.34330718,0.00015,2]
[392750534,1761906670766,-235.48774256,0.00014043,2]
[392750538,1761906823473,451.0,0.00030136,120]
[392750540,1761906860963,439.0,0.0003013,120]
[392750541,1761906861779,750.0,0.0003013,120]
[392750542,1761906863836,331.0,0.0003013,120]
[392750543,1761906864612,284.0,0.0003013,120]
[392750544,1761906865399,445.0,0.0003013,120]
[392750545,1761906866177,470.0,0.0003013,120]
[392750546,1761906866968,167.0,0.0003013,120]
[392750547,1761906868285,191.0,0.0003013,120]
[392750548,1761906869096,386.0,0.0003013,120]
[392750549,1761906881322,177.14,0.00011267,2]
[392750550,1761906920562,1396.76448849,0.0003013,120]
[392750551,1761906922700,342.0,0.0003013,120]
[392750552,1761906923518,179.0,0.0003013,120]
[392750553,1761906967227,301.06618071,0.00027397,120]
[392750554,1761906978817,375.0,0.00030136,120]
[392750555,1761906982645,164.0,0.0003013,120]
[392750556,1761907036587,1252.22644155,0.00030136,120]
[392750557,1761907041044,181.36470589,0.0003013,120]
[392750558,1761907096409,329.48,0.00030136,120]
[392750560,1761907211118,153.0,0.00030137,120]
[392750562,1761907376451,274.953499,0.000165,3]
[392750563,1761907376652,386.511038,0.000165,3]
[392750564,1761907395907,504.978976,0.00025408,120]
[392750565,1761907401254,350.0,0.00014999,4]
[392750566,1761907403648,500.0,0.00026908,120]
[392750567,1761907457542,300.0,0.00030136,120]
[392750568,1761907471501,174.94018083,0.00030136,120]
[392750569,1761907507153,-160.0,0.00013699,2]
[392750572,1761907609099,152.88,0.0002609,120]
[392750573,1761907615541,667.0,0.00029987,120]
[392750574,1761907831969,-6.3,0.00013699,2]
[392750575,1761907831979,-195.0,0.00013719,2]
[392750576,1761907831990,-181.18711399,0.00013719,2]
[392750577,1761907832001,-300.0,0.00013739,2]
[392750578,1761907832011,-364.28582039,0.0001378,2]
[392750579,1761907832020,-240.95405765,0.0001378,2]
[392750580,1761907832030,-373.04321473,0.00013879,2]
[392750581,1761907832039,-2751.0,0.00014023,2]
[392750582,1761907832049,-14.51225744,0.00014043,2]
[392750583,1761907832060,-500.0,0.000141,2]
[392750584,1761907832069,-206.78,0.00014124,2]
[392750585,1761907832079,-166.3,0.00014197,2]
[392750586,1761907832088,-300.0,0.00014599,2]
[392750587,1761907832097,-269.561961,0.00014599,2]
[392750588,1761907832108,-595.88059027,0.00014599,2]
[392750643,1761907837935,-272.69845103,0.00014599,2]
[392750644,1761907837947,-61.8589977,0.00014599,2]
[392750645,1761907837956,-300.0,0.00014599,2]
[392750646,1761907837966,-171.34,0.000146,2]
[392750647,1761907837975,-239.17764421,0.000146,2]
[392750648,1761907837989,-130.33235579,0.000146,2]
[392750649,1761907837999,-423.22,0.000146,2]
[392750650,1761907838008,-303.42,0.000146,2]
[392750651,1761907838018,-415.1,0.000146,2]
[392750652,1761907838028,-205.0,0.00014647,2]
[392750653,1761907838037,-1000.0,0.00014648,2]
[392750654,1761907838052,-166.3,0.00014694,2]
[392750656,1761907838062,-892.97880699,0.00014719,2]
[392750658,1761907838072,-150.0,0.0001487,2]
[392750660,1761907838083,-151.0,0.00014871,2]
[392750662,1761907838092,-151.0,0.00014871,2]
[392750664,1761907838102,-151.0,0.00014871,2]
[392750666,1761907838111,-151.0,0.00014871,2]
[392750668,1761907838121,-281.876957,0.00014871,2]
[392750670,1761907838131,-151.0,0.00014871,2]
[392750672,1761907838140,-151.0,0.00014871,2]
[392750674,1761907838149,-151.0,0.00014871,2]
[392750676,1761907838159,-151.0,0.00014871,2]
[392750678,1761907838168,-151.0,0.00014871,2]
[392750680,1761907838178,-151.0,0.00014871,2]
[392750681,1761907838187,-500.0,0.00014871,2]
[392750683,1761907838197,-151.0,0.00014871,2]
[392750685,1761907838206,-151.0,0.00014871,2]
[392750687,1761907838216,-151.0,0.00014871,2]
[392750689,1761907838225,-151.0,0.00014871,2]
[392750690,1761907838235,-151.0,0.00014871,2]
[392750692,1761907838244,-270.1462402,0.00014871,2]
[392750694,1761907838254,-574.12855637,0.00014871,2]
[392750695,1761907838265,-500.0,0.00014871,2]
[392750696,1761907838274,-500.0,0.00014871,2]
[392750697,1761907838283,-500.0,0.00014871,2]
[392750698,1761907838293,-200.0,0.00014871,2]
[392750699,1761907838303,-209.40437684,0.00014871,2]
[392750700,1761907838312,-177.66460061,0.00014871,2]
[392750701,1761907838321,-1108.3,0.00014879,2]
[392750702,1761907838331,-500.0,0.00014879,2]
[392750703,1761907838341,-270.07333545,0.00014879,2]
[392750704,1761907838350,-500.0,0.00014879,2]
[392750705,1761907838360,-500.0,0.00014879,2]
[392750706,1761907838369,-193.84476767,0.00014879,2]
[392750707,1761907838378,-500.0,0.00014879,2]
[392750708,1761907838387,-500.0,0.00014879,2]
[392750709,1761907838396,-500.0,0.00014879,2]
[392750710,1761907838405,-500.0,0.00014879,2]
[392750711,1761907838415,-280.4250036,0.00014879,2]
[392750712,1761907838428,-500.0,0.00014879,2]
[392750713,1761907838438,-500.0,0.00014879,2]
[392750714,1761907838448,-500.0,0.00014879,2]
[392750715,1761907838457,-500.0,0.00014879,2]
[392750716,1761907838468,-500.0,0.00014879,2]
[392750717,1761907838477,-500.0,0.00014879,2]
[392750718,1761907838487,-500.0,0.00014879,2]
[392750719,1761907838497,-500.0,0.00014879,2]
[392750720,1761907838507,-500.0,0.00014879,2]
[392750721,1761907838517,-500.0,0.00014879,2]
[392750722,1761907838526,-500.0,0.00014879,2]
[392750723,1761907838536,-500.0,0.00014879,2]
[392750724,1761907838545,-500.0,0.00014879,2]
[392750725,1761907838555,-33219.346,0.0001488,2]
[392750726,1761907838565,-382.6111,0.0001488,2]
[392750727,1761907838577,-2140.6348,0.000149,2]
[392750728,1761907838587,-1096.24,0.000149,2]
[392750729,1761907838597,-159.0,0.000149,2]
[392750730,1761907838607,-150.0,0.000149,2]
[392750731,1761907838616,-1937.06082876,0.000149,2]
[392750732,1761907838626,-1315.96,0.00014934,2]
[392750733,1761907838635,-500.0,0.00014973,2]
[392750734,1761907838645,-500.0,0.00014973,2]
[392750735,1761907838654,-500.0,0.00014973,2]
[392750736,1761907838664,-176.82469572,0.00014973,2]
[392750737,1761907838673,-170.23236576,0.00014973,2]
[392750738,1761907838682,-500.0,0.00014973,2]
[392750739,1761907838692,-327.76019208,0.00014973,2]
[392750740,1761907838974,-501.83517664,0.00014973,2]
[392750741,1761907838984,-500.0,0.00014973,2]
[392750742,1761907838994,-500.41073257,0.00014973,2]
[392750743,1761907839005,-500.0,0.00014973,2]
[392750744,1761907839015,-357.4623208,0.00014973,2]
[392750745,1761907839025,-500.0,0.00014973,2]
[392750746,1761907839035,-500.0,0.00014973,2]
[392750747,1761907839045,-573.77825129,0.00014973,2]
[392750748,1761907839055,-327.49,0.00014987,2]
[392750749,1761907839064,-398.98,0.00014987,2]
[392750750,1761907839074,-377.94170616,0.0001499,2]
[392750751,1761907839083,-509.6671388,0.0001499,2]
[392750752,1761907839093,-500.0,0.0001499,2]
[392750753,1761907839102,-500.0,0.0001499,2]
[392750754,1761907839111,-202.47139033,0.0001499,2]
[392750755,1761907839121,-715.56734321,0.00014999,2]
[392750756,1761907839131,-175.64099304,0.00014999,2]
[392750757,1761907839140,-500.0,0.00014999,2]
[392750758,1761907839150,-490.43461056,0.00014999,2]
[392750759,1761907839159,-262.87602518,0.00014999,2]
[392750760,1761907839169,-150.0,0.00014999,2]
[392750761,1761907839178,-150.0,0.00014999,2]
[392750762,1761907839187,-500.0,0.00014999,2]
[392750763,1761907839196,-500.0,0.00014999,2]
[392750764,1761907839206,-157.93191293,0.00014999,2]
[392750765,1761907839215,-500.0,0.00014999,2]
[392750766,1761907839224,-150.0,0.00014999,2]
[392750767,1761907839234,-150.0,0.00014999,2]
[392750768,1761907839244,-500.0,0.00014999,2]
[392750769,1761907839254,-152.49763088,0.00014999,2]
[392750770,1761907839263,-150.0,0.00014999,2]
[392750771,1761907839273,-500.0,0.00014999,2]
[392750772,1761907839282,-500.0,0.00014999,2]
[392750773,1761907839291,-314.36595775,0.00014999,2]
[392750774,1761907839301,-500.01,0.00014999,2]
[392750775,1761907839310,-150.0,0.00014999,2]
[392750776,1761907839320,-150.0,0.00014999,2]
[392750777,1761907839329,-150.0,0.00014999,2]
[392750778,1761907839338,-500.0,0.00014999,2]
[392750779,1761907839347,-150.0,0.00014999,2]
[392750780,1761907839355,-150.0,0.00014999,2]
[392750781,1761907839364,-500.0,0.00014999,2]
[392750782,1761907839374,-290.94,0.00014999,2]
[392750783,1761907839383,-150.0,0.00014999,2]
[392750784,1761907839392,-231.15119241,0.00014999,2]
[392750785,1761907839401,-150.0,0.00014999,2]
[392750786,1761907839409,-150.46513121,0.00014999,2]
[392750787,1761907839418,-500.0,0.00014999,2]
[392750788,1761907839427,-221.32331399,0.00014999,2]
[392750789,1761907839436,-150.0,0.00014999,2]
[392750790,1761907839445,-500.0,0.00014999,2]
[392750791,1761907839454,-656.0,0.00014999,2]
[392750792,1761907839463,-250.70575794,0.00014999,2]
[392750793,1761907839472,-1171.0,0.00014999,2]
[392750794,1761907839482,-500.0,0.00014999,2]
[392750795,1761907839491,-150.0,0.00014999,2]
[392750796,1761907839499,-150.0,0.00014999,2]
[392750797,1761907839519,-500.0,0.00014999,2]
[392750798,1761907839529,-150.0,0.00014999,2]
[392750799,1761907839539,-500.0,0.00014999,2]
[392750800,1761907839550,-150.0,0.00014999,2]
[392750801,1761907839559,-500.0,0.00014999,2]
[392750802,1761907839568,-500.0,0.00014999,2]
[392750803,1761907839578,-500.0,0.00014999,2]
[392750804,1761907839591,-500.0,0.00014999,2]
[392750805,1761907839600,-500.0,0.00014999,2]
[392750806,1761907839610,-500.0,0.00014999,2]
[392750807,1761907839619,-500.0,0.00014999,2]
[392750808,1761907839628,-1266.0,0.00015,2]
[392750809,1761907839638,-2670243.05102005,0.00015,2]
[392750810,1761907839660,-1563.95523861,0.00015,2]
[392750811,1761907839672,-9598.70308299,0.00015,2]
[392750812,1761907839687,-19958.96871906,0.00015,2]
[392750813,1761907839698,-61579.94976909,0.00015,2]
[392750814,1761907840148,-375.09500003,0.00015,2]
[392750815,1761907840203,-1400.0,0.00015,2]
[392750816,1761907840214,-764679.45815193,0.00015,2]
[392750866,1761907846012,-269.8563,0.00013599,2]
[392750867,1761907846022,-511.89516831,0.00014999,2]
[392750868,1761907846031,-3079.0054318,0.00015,2]
[392750869,1761907846120,-137372.37892959,0.00015,2]
[392750874,1761907858854,-360.36259135,0.00013699,2]
[392750875,1761907905770,3036.0,0.000165,3]
[392750877,1761907980904,158.0,0.0003013,120]
[392750878,1761908000227,511.66616,0.000252,120]
[392750880,1761908268323,-162.0,0.0003734,5]
[392750881,1761908345410,-162.0,0.0003734,5]
[392750882,1761908349879,-67.62740865,0.00013699,2]
[392750883,1761908349904,-94.37259135,0.00014134,2]
[392750884,1761908623886,153.147222,0.0003013,120]
[392750889,1761909032029,-1500.0,0.00014064,2]
[392750890,1761909032039,-195.0,0.00014073,2]
[392750891,1761909032048,-62.43740865,0.00014134,2]
[392750892,1761909032057,-200.0,0.00014134,2]
[392750893,1761909032067,-628.04,0.00014134,2]
[392750894,1761909032077,-1634.95,0.00014247,2]
[392750895,1761909032086,-500.0,0.00014438,2]
[392750896,1761909032095,-166.58,0.00014558,2]
[392750897,1761909032105,-1200.0,0.00014799,2]
[392750898,1761909032114,-300.0,0.00014799,2]
[392750899,1761909032124,-176.7,0.000148,2]
[392750900,1761909032133,-176.7,0.000148,2]
[392750901,1761909032142,-145.1466807,0.000148,2]
[392750902,1761909032156,-31.5533193,0.000148,2]
[392750903,1761909032166,-176.7,0.000148,2]
[392750904,1761909032181,-518.05724544,0.000148,2]
[392750905,1761909032194,-295.48275456,0.000148,2]
[392750906,1761909032203,-571.61570223,0.000149,2]
[392750907,1761909032212,-1208.77634213,0.000149,2]
[392750908,1761909032222,-163.09888521,0.000149,2]
[392750909,1761909032231,-233.59568846,0.000149,2]
[392750910,1761909032241,-1014.0,0.000149,2]
[392750912,1761909032250,-210.5142927,0.000149,2]
[392750914,1761909032259,-1291.37388584,0.000149,2]
[392750916,1761909032268,-156.81,0.0001492,2]
[392750918,1761909032278,-150.0,0.00014972,2]
[392750920,1761909032287,-500.0,0.00014973,2]
[392750921,1761909032296,-510.93598988,0.00014973,2]
[392750922,1761909032306,-198.65453119,0.00014973,2]
[392750923,1761909032315,-198.02912071,0.00014973,2]
[392750924,1761909032324,-500.0,0.00014973,2]
[392750925,1761909032333,-500.0,0.00014973,2]
[392750926,1761909032345,-305.61516358,0.00014973,2]
[392750927,1761909032355,-327.49,0.00014988,2]
[392750929,1761909032365,-398.98,0.00014988,2]
[392750931,1761909032374,-206.26442504,0.0001499,2]
[392750933,1761909032385,-206.26442504,0.0001499,2]
[392750935,1761909032394,-151.0,0.00014991,2]
[392750937,1761909032403,-151.0,0.00014991,2]
[392750939,1761909032412,-151.0,0.00014991,2]
[392750941,1761909032422,-151.0,0.00014991,2]
[392750943,1761909032431,-151.0,0.00014991,2]
[392750945,1761909032440,-151.0,0.00014991,2]
[392750948,1761909032450,-151.0,0.00014991,2]
[392750951,1761909032459,-151.0,0.00014991,2]
[392750954,1761909032468,-151.0,0.00014991,2]
[392750957,1761909032478,-151.0,0.00014991,2]
[392750960,1761909032488,-151.0,0.00014991,2]
[392750963,1761909032498,-151.0,0.00014991,2]
[392750965,1761909032507,-151.0,0.00014991,2]
[392750966,1761909032517,-246.20025685,0.00014991,2]
[392750967,1761909032526,-151.0,0.00014991,2]
[392750968,1761909032535,-151.0,0.00014991,2]
[392750969,1761909032544,-151.0,0.00014991,2]
[392750970,1761909032554,-151.0,0.00014991,2]
[392750971,1761909032563,-151.0,0.00014991,2]
[392750972,1761909032572,-151.0,0.00014991,2]
[392750973,1761909032581,-183.3423837,0.00014991,2]
[392750974,1761909032590,-173.18401907,0.00014998,2]
[392750975,1761909032599,-500.0,0.00014998,2]
[392750976,1761909032608,-500.0,0.00014998,2]
[392750977,1761909032617,-500.0,0.00014998,2]
[392750978,1761909032627,-500.0,0.00014998,2]
[392750979,1761909032636,-528.04250036,0.00014998,2]
[392750980,1761909032645,-500.0,0.00014998,2]
[392750981,1761909032655,-500.0,0.00014998,2]
[392750982,1761909032664,-500.0,0.00014998,2]
[392750983,1761909032674,-500.0,0.00014998,2]
[392750984,1761909032683,-500.0,0.00014998,2]
[392750985,1761909032693,-500.0,0.00014998,2]
[392750986,1761909032954,-500.0,0.00014998,2]
[392750987,1761909032966,-500.0,0.00014998,2]
[392750988,1761909032975,-500.0,0.00014998,2]
[392750989,1761909032985,-500.0,0.00014998,2]
[392750990,1761909032994,-500.0,0.00014998,2]
[392750991,1761909033003,-500.0,0.00014998,2]
[392750992,1761909033013,-500.0,0.00014998,2]
[392750993,1761909033023,-500.0,0.00014998,2]
[392750994,1761909033032,-500.0,0.00014998,2]
[392750995,1761909033041,-500.0,0.00014998,2]
[392750996,1761909033051,-500.0,0.00014998,2]
[392750997,1761909033060,-500.0,0.00014998,2]
[392750998,1761909033069,-500.0,0.00014998,2]
[392750999,1761909033078,-629.43955674,0.00014998,2]
[392751000,1761909033088,-297.13038317,0.00014999,2]
[392751001,1761909033097,-500.0,0.00014999,2]
[392751002,1761909033106,-500.0,0.00014999,2]
[392751003,1761909033117,-500.0,0.00014999,2]
[392751004,1761909033125,-500.0,0.00014999,2]
[392751005,1761909033135,-500.0,0.00014999,2]
[392751006,1761909033144,-500.0,0.00014999,2]
[392751007,1761909033153,-500.0,0.00014999,2]
[392751008,1761909033163,-500.0,0.00014999,2]
[392751009,1761909033172,-500.0,0.00014999,2]
[392751010,1761909033181,-351.16226879,0.00014999,2]
[392751011,1761909033191,-500.0,0.00014999,2]
[392751012,1761909033200,-715.56734321,0.00014999,2]
[392751013,1761909033209,-150.0,0.00014999,2]
[392751014,1761909033219,-150.0,0.00014999,2]
[392751015,1761909033228,-150.0,0.00014999,2]
[392751016,1761909033238,-150.0,0.00014999,2]
[392751017,1761909033248,-500.0,0.00014999,2]
[392751018,1761909033257,-500.0,0.00014999,2]
[392751019,1761909033267,-500.0,0.00014999,2]
[392751020,1761909033276,-157.93191293,0.00014999,2]
[392751021,1761909033285,-500.0,0.00014999,2]
[392751022,1761909033295,-500.0,0.00014999,2]
[392751023,1761909033304,-150.0,0.00014999,2]
[392751024,1761909033313,-150.0,0.00014999,2]
[392751025,1761909033323,-150.0,0.00014999,2]
[392751026,1761909033332,-500.0,0.00014999,2]
[392751027,1761909033342,-500.0,0.00014999,2]
[392751028,1761909033355,-500.0,0.00014999,2]
[392751029,1761909033365,-500.0,0.00014999,2]
[392751030,1761909033375,-150.0,0.00014999,2]
[392751031,1761909033385,-500.0,0.00014999,2]
[392751032,1761909033394,-500.0,0.00014999,2]
[392751033,1761909033403,-500.0,0.00014999,2]
[392751034,1761909033412,-500.0,0.00014999,2]
[392751035,1761909033422,-500.0,0.00014999,2]
[392751036,1761909033431,-500.0,0.00014999,2]
[392751037,1761909033440,-150.0,0.00014999,2]
[392751038,1761909033450,-500.0,0.00014999,2]
[392751039,1761909033459,-500.0,0.00014999,2]
[392751040,1761909033468,-231.15119241,0.00014999,2]
[392751041,1761909033478,-500.0,0.00014999,2]
[392751042,1761909033487,-479.2415512,0.00014999,2]